fUSD/lending_fUSD_20260605
["ID","MTS","AMOUNT","RATE_DAILY","PERIOD"]
[424154283,1780614644000,-279.0,0.00021,2]
[424154280,1780614644000,-150.0,0.0002058,2]
[424154284,1780614644000,-489.0,0.00021,2]
[424154282,1780614644000,-3719.50488093,0.00020912,2]
[424154281,1780614644000,-500.0,0.00020837,2]
[424154279,1780614644000,-150.0,0.0002058,2]
[424154286,1780614644000,-314.0,0.00021,2]
[424154297,1780614644000,-995.0,0.00021,2]
[424154287,1780614644000,-1760.0,0.00021,2]
[424154285,1780614644000,-183.0,0.00021,2]
[424154278,1780614644000,-150.0,0.0002058,2]
[424154304,1780614644000,-735.98,0.00021295,2]
[424154307,1780614644000,-4100.78930111,0.00021376,2]
[424154288,1780614644000,-1197.057938,0.00021,2]
[424154306,1780614644000,-4774.37,0.0002137,2]
[424154301,1780614644000,-500.0,0.00021001,2]
[424154289,1780614644000,-437.0,0.00021,2]
[424154292,1780614644000,-443.0,0.00021,2]
[424154293,1780614644000,-245.0,0.00021,2]
[424154295,1780614644000,-557.0,0.00021,2]
[424154294,1780614644000,-2393.0,0.00021,2]
[424154290,1780614644000,-258.0,0.00021,2]
[424154291,1780614644000,-2842.0,0.00021,2]
[424154375,1780614645000,-4100.78930111,0.00022485,2]
[424154363,1780614645000,-234.9888517,0.00022407,2]
[424154373,1780614645000,-2156.0,0.00022466,2]
[424154374,1780614645000,-839.47,0.00022466,2]
[424154369,1780614645000,-158.38,0.00022426,2]
[424154368,1780614645000,-158.38,0.00022426,2]
[424154366,1780614645000,-158.38,0.00022426,2]
[424154370,1780614645000,-158.38,0.00022426,2]
[424154371,1780614645000,-158.38,0.00022426,2]
[424154367,1780614645000,-158.38,0.00022426,2]
[424154377,1780614645000,-4100.78930111,0.00022563,2]
[424154372,1780614645000,-2057.98,0.00022466,2]
[424154378,1780614645000,-168.16,0.00022603,2]
[424154388,1780614645000,-4031.92381547,0.000227,2]
[424154376,1780614645000,-3675.0,0.00022497,5]
[424154380,1780614645000,-4100.78930111,0.00022655,2]
[424154379,1780614645000,-1124.0,0.00022621,2]
[424154382,1780614645000,-4100.78930111,0.00022664,2]
[424154381,1780614645000,-151.0,0.00022659,2]
[424154383,1780614645000,-418.88137884,0.000227,2]
[424154384,1780614645000,-622.33502855,0.000227,2]
[424154385,1780614645000,-417.86579173,0.000227,2]
[424154387,1780614645000,-4347.17338664,0.000227,2]
[424154386,1780614645000,-558.04153669,0.000227,2]
[424154390,1780614645000,-4100.78930111,0.00022703,2]
[424154364,1780614645000,-234.9888517,0.00022407,2]
[424154391,1780614645000,-500.0,0.0002283,7]
[424154365,1780614645000,-158.38,0.00022426,2]
[424154336,1780614645000,-2842.0,0.00022,2]
[424154358,1780614645000,-4100.78930111,0.00022405,2]
[424154392,1780614645000,-500.0,0.0002283,7]
[424154334,1780614645000,-437.0,0.00022,2]
[424154333,1780614645000,-1197.057938,0.00022,2]
[424154335,1780614645000,-258.0,0.00022,2]
[424154337,1780614645000,-443.0,0.00022,2]
[424154338,1780614645000,-245.0,0.00022,2]
[424154340,1780614645000,-557.0,0.00022,2]
[424154339,1780614645000,-2393.0,0.00022,2]
[424154344,1780614645000,-450.0,0.00022,2]
[424154343,1780614645000,-762.19,0.00022,2]
[424154345,1780614645000,-4100.78930111,0.00022106,2]
[424154342,1780614645000,-332.0,0.00022,2]
[424154341,1780614645000,-995.0,0.00022,2]
[424154362,1780614645000,-234.98885172,0.00022407,2]
[424154348,1780614645000,-3745.4,0.00022353,2]
[424154346,1780614645000,-4100.78930111,0.00022242,2]
[424154349,1780614645000,-3719.50488093,0.00022366,2]
[424154350,1780614645000,-4100.78930111,0.00022381,2]
[424154351,1780614645000,-418.88137884,0.000224,2]
[424154353,1780614645000,-417.86579173,0.000224,2]
[424154352,1780614645000,-622.33502855,0.000224,2]
[424154359,1780614645000,-712.06811606,0.00022407,2]
[424154355,1780614645000,-4347.17338664,0.000224,2]
[424154357,1780614645000,-1006.83748556,0.000224,2]
[424154361,1780614645000,-712.06811605,0.00022407,2]
[424154356,1780614645000,-4031.92381547,0.000224,2]
[424154360,1780614645000,-712.06811605,0.00022407,2]
[424154354,1780614645000,-558.04153669,0.000224,2]
[424154347,1780614645000,-4100.78930111,0.00022294,2]
[424154393,1780614645000,-542.923,0.0002283,7]
[424154404,1780614645000,-314.0,0.00023,2]
[424154394,1780614645000,-418.88137884,0.000229,2]
[424154429,1780614645000,-671.576668,0.00023264,2]
[424154428,1780614645000,-1328.0,0.00023193,2]
[424154430,1780614645000,-2500.0,0.00023269,2]
[424154431,1780614645000,-1100.0,0.00023269,2]
[424154432,1780614645000,-1500.0,0.00023269,7]
[424154423,1780614645000,-4031.92381547,0.000231,2]
[424154433,1780614645000,-184.42,0.00023288,2]
[424154435,1780614645000,-622.33502855,0.000233,2]
[424154445,1780614645000,-4347.17338664,0.000236,2]
[424154446,1780614645000,-4031.92381547,0.000236,2]
[424154434,1780614645000,-418.88137884,0.000233,2]
[424154436,1780614645000,-417.86579173,0.000233,2]
[424154437,1780614645000,-558.04153669,0.000233,2]
[424154438,1780614645000,-4347.17338664,0.000233,2]
[424154442,1780614645000,-6029.87,0.0002343,2]
[424154440,1780614645000,-1006.83748556,0.000233,2]
[424154439,1780614645000,-4031.92381547,0.000233,2]
[424154444,1780614645000,-297.69,0.0002343,2]
[424154443,1780614645000,-12822.87,0.0002343,2]
[424154447,1780614645000,-4347.17338664,0.000238,2]
[424154449,1780614645000,-1124.0,0.00023812,2]
[424154450,1780614645000,-150.0,0.00023814,2]
[424154451,1780614645000,-3719.50488093,0.00023821,2]
[424154448,1780614645000,-4031.92381547,0.000238,2]
[424154452,1780614645000,-12649.0,0.00023907,2]
[424154453,1780614645000,-279.0,0.00024,2]
[424154395,1780614645000,-622.33502855,0.000229,2]
[424154424,1780614645000,-1006.83748556,0.000231,2]
[424154425,1780614645000,-502.61,0.000231,7]
[424154441,1780614645000,-12635.13,0.0002341,7]
[424154427,1780614645000,-1327.0,0.00023193,2]
[424154426,1780614645000,-4971.47303121,0.00023147,2]
[424154396,1780614645000,-417.86579173,0.000229,2]
[424154389,1780614645000,-1006.83748556,0.000227,2]
[424154397,1780614645000,-558.04153669,0.000229,2]
[424154398,1780614645000,-4347.17338664,0.000229,2]
[424154400,1780614645000,-1006.83748556,0.000229,2]
[424154402,1780614645000,-489.0,0.00023,2]
[424154405,1780614645000,-1760.0,0.00023,2]
[424154409,1780614645000,-258.0,0.00023,2]
[424154410,1780614645000,-2842.0,0.00023,2]
[424154407,1780614645000,-258.15,0.00023,14]
[424154403,1780614645000,-183.0,0.00023,2]
[424154399,1780614645000,-4031.92381547,0.000229,2]
[424154401,1780614645000,-279.0,0.00023,2]
[424154408,1780614645000,-437.0,0.00023,2]
[424154422,1780614645000,-4347.17338664,0.000231,2]
[424154406,1780614645000,-1197.057938,0.00023,2]
[424154419,1780614645000,-622.33502855,0.000231,2]
[424154421,1780614645000,-558.04153669,0.000231,2]
[424154417,1780614645000,-332.0,0.00023,2]
[424154418,1780614645000,-418.88137884,0.000231,2]
[424154420,1780614645000,-417.86579173,0.000231,2]
[424154415,1780614645000,-557.0,0.00023,2]
[424154416,1780614645000,-995.0,0.00023,2]
[424154413,1780614645000,-2453.0,0.00023,2]
[424154414,1780614645000,-2393.0,0.00023,2]
[424154412,1780614645000,-245.0,0.00023,2]
[424154411,1780614645000,-443.0,0.00023,2]
[424154484,1780614646000,-762.19,0.00024793,7]
[424154482,1780614646000,-242.02,0.00024658,2]
[424154485,1780614646000,-1350.0,0.00024999,2]
[424154483,1780614646000,-1000.0,0.00024658,2]
[424154477,1780614646000,-4031.92381547,0.000243,2]
[424154478,1780614646000,-3745.4,0.00024324,2]
[424154480,1780614646000,-4031.92381547,0.000245,2]
[424154476,1780614646000,-4347.17338664,0.000243,2]
[424154499,1780614646000,-292.07115341,0.00025,2]
[424154479,1780614646000,-4347.17338664,0.000245,2]
[424154487,1780614646000,-1350.0,0.00024999,2]
[424154486,1780614646000,-1350.0,0.00024999,2]
[424154497,1780614646000,-592.88734821,0.00025,2]
[424154488,1780614646000,-1350.0,0.00024999,2]
[424154498,1780614646000,-4328.48051187,0.00025,2]
[424154475,1780614646000,-28892.26,0.00024174,2]
[424154489,1780614646000,-1350.0,0.00024999,2]
[424154481,1780614646000,-298.4,0.000246,14]
[424154473,1780614646000,-3810.72,0.00024174,2]
[424154461,1780614646000,-2842.0,0.00024,2]
[424154472,1780614646000,-18313.66,0.00024174,2]
[424154490,1780614646000,-1350.0,0.00024999,2]
[424154459,1780614646000,-437.0,0.00024,2]
[424154454,1780614646000,-489.0,0.00024,2]
[424154457,1780614646000,-1760.0,0.00024,2]
[424154456,1780614646000,-314.0,0.00024,2]
[424154458,1780614646000,-1197.057938,0.00024,2]
[424154455,1780614646000,-183.0,0.00024,2]
[424154460,1780614646000,-258.0,0.00024,2]
[424154474,1780614646000,-596.86,0.00024174,2]
[424154467,1780614646000,-332.0,0.00024,2]
[424154470,1780614646000,-4347.17338664,0.000241,2]
[424154462,1780614646000,-443.0,0.00024,2]
[424154469,1780614646000,-500.0,0.00024,2]
[424154465,1780614646000,-557.0,0.00024,2]
[424154464,1780614646000,-2393.0,0.00024,2]
[424154466,1780614646000,-995.0,0.00024,2]
[424154471,1780614646000,-4031.92381547,0.000241,2]
[424154468,1780614646000,-3169.04614476,0.00024,2]
[424154463,1780614646000,-245.0,0.00024,2]
[424154491,1780614646000,-1350.0,0.00024999,2]
[424154496,1780614646000,-841.3188791,0.00025,2]
[424154492,1780614646000,-1350.0,0.00024999,2]
[424154519,1780614646000,-400.0,0.00025011,2]
[424154522,1780614646000,-400.0,0.00025011,2]
[424154523,1780614646000,-400.0,0.00025011,2]
[424154520,1780614646000,-400.0,0.00025011,2]
[424154517,1780614646000,-614.83612588,0.00025003,2]
[424154521,1780614646000,-400.0,0.00025011,2]
[424154526,1780614646000,-475.0,0.00025011,2]
[424154535,1780614646000,-735.98,0.00025733,2]
[424154536,1780614646000,-16658.31825299,0.00025786,2]
[424154527,1780614646000,-502.61,0.000251,7]
[424154530,1780614646000,-3719.50488093,0.00025275,2]
[424154531,1780614646000,-500.0,0.00025279,2]
[424154529,1780614646000,-200.0,0.00025128,2]
[424154532,1780614646000,-266.5838277,0.00025729,2]
[424154533,1780614646000,-196.2922681,0.00025729,2]
[424154534,1780614646000,-200.84032597,0.00025729,2]
[424154495,1780614646000,-263.91170216,0.00025,2]
[424154518,1780614646000,-400.0,0.00025011,2]
[424154516,1780614646000,-179.0,0.00025001,2]
[424154528,1780614646000,-12635.13,0.00025116,7]
[424154524,1780614646000,-400.0,0.00025011,2]
[424154493,1780614646000,-1350.0,0.00024999,2]
[424154515,1780614646000,-150.0,0.00025001,2]
[424154494,1780614646000,-1033.0,0.00024999,2]
[424154500,1780614646000,-495.69273193,0.00025,2]
[424154502,1780614646000,-321.0,0.00025,2]
[424154504,1780614646000,-437.15045654,0.00025,2]
[424154505,1780614646000,-275.34271201,0.00025,2]
[424154501,1780614646000,-188.0,0.00025,2]
[424154511,1780614646000,-1014.11159556,0.00025,2]
[424154503,1780614646000,-1762.08011105,0.00025,2]
[424154506,1780614646000,-2852.43038102,0.00025,2]
[424154507,1780614646000,-455.71410742,0.00025,2]
[424154509,1780614646000,-2409.45161434,0.00025,2]
[424154508,1780614646000,-263.72635666,0.00025,2]
[424154510,1780614646000,-569.66361116,0.00025,2]
[424154514,1780614646000,-269.0,0.00025001,2]
[424154512,1780614646000,-334.06432342,0.00025,2]
[424154513,1780614646000,-2000.0,0.00025,7]
[424154525,1780614646000,-400.0,0.00025011,2]
[424154556,1780614647000,-150.0,0.00026088,4]
[424154575,1780614647000,-3745.4,0.00026296,2]
[424154572,1780614647000,-150.0,0.00026288,4]
[424154571,1780614647000,-150.0,0.00026288,4]
[424154570,1780614647000,-206.93671141,0.00026263,4]
[424154564,1780614647000,-150.0,0.00026188,4]
[424154563,1780614647000,-150.0,0.00026188,4]
[424154561,1780614647000,-150.0,0.00026155,4]
[424154569,1780614647000,-150.0,0.00026249,4]
[424154568,1780614647000,-206.93671141,0.00026234,4]
[424154574,1780614647000,-206.93671141,0.00026293,4]
[424154591,1780614647000,-150.0,0.00026492,4]
[424154573,1780614647000,-150.0,0.0002629,4]
[424154578,1780614647000,-206.93671141,0.00026322,4]
[424154580,1780614647000,-150.0,0.00026357,4]
[424154579,1780614647000,-206.93671141,0.00026351,4]
[424154577,1780614647000,-4971.47303121,0.00026315,2]
[424154582,1780614647000,-150.0,0.00026388,4]
[424154590,1780614647000,-150.0,0.00026487,4]
[424154593,1780614647000,-150.0,0.00026502,4]
[424154581,1780614647000,-206.93671141,0.0002638,4]
[424154562,1780614647000,-206.93671141,0.00026176,4]
[424154576,1780614647000,-17709.0,0.00026298,2]
[424154560,1780614647000,-206.93671141,0.00026146,4]
[424154545,1780614647000,-6009.6,0.00026027,2]
[424154559,1780614647000,-206.93671141,0.00026117,4]
[424154538,1780614647000,-280.570408,0.00025786,2]
[424154539,1780614647000,-1374.77133901,0.00025786,2]
[424154540,1780614647000,-3810.72,0.00025786,2]
[424154541,1780614647000,-596.86,0.00025786,2]
[424154543,1780614647000,-150.0,0.00025868,2]
[424154542,1780614647000,-28892.26,0.00025786,2]
[424154594,1780614647000,-206.93671141,0.00026527,4]
[424154546,1780614647000,-184.42,0.00026027,31]
[424154552,1780614647000,-150.0,0.00026088,4]
[424154544,1780614647000,-550.0,0.00026,2]
[424154557,1780614647000,-150.0,0.00026088,4]
[424154553,1780614647000,-150.0,0.00026088,4]
[424154547,1780614647000,-500.0,0.00026037,2]
[424154551,1780614647000,-150.0,0.00026088,4]
[424154550,1780614647000,-150.0,0.00026088,4]
[424154549,1780614647000,-150.0,0.00026088,4]
[424154555,1780614647000,-206.93671141,0.00026088,4]
[424154565,1780614647000,-210.662222,0.00026204,2]
[424154566,1780614647000,-206.93671141,0.00026205,4]
[424154554,1780614647000,-150.0,0.00026088,4]
[424154567,1780614647000,-150.0,0.00026222,4]
[424154558,1780614647000,-150.0,0.00026088,4]
[424154548,1780614647000,-150.0,0.00026088,4]
[424154592,1780614647000,-206.93671141,0.00026498,4]
[424154627,1780614647000,-150.0,0.00026897,4]
[424154586,1780614647000,-150.0,0.00026425,4]
[424154619,1780614647000,-206.93671141,0.0002682,4]
[424154620,1780614647000,-12635.13,0.00026821,7]
[424154617,1780614647000,-206.93671141,0.0002679,4]
[424154618,1780614647000,-500.0,0.00026818,2]
[424154623,1780614647000,-206.93671141,0.00026878,4]
[424154622,1780614647000,-206.93671141,0.00026849,4]
[424154632,1780614647000,-206.93671141,0.00026966,4]
[424154621,1780614647000,-150.0,0.00026829,4]
[424154634,1780614647000,-150.0,0.00026987,4]
[424154633,1780614647000,-150.0,0.00026987,4]
[424154616,1780614647000,-150.0,0.00026787,4]
[424154630,1780614647000,-206.93671141,0.00026937,4]
[424154626,1780614647000,-150.0,0.00026893,4]
[424154628,1780614647000,-206.93671141,0.00026907,4]
[424154629,1780614647000,-150.0,0.00026916,4]
[424154631,1780614647000,-150.0,0.00026964,4]
[424154636,1780614647000,-1600.263084,0.00027,60]
[424154638,1780614647000,-1600.263085,0.00027,60]
[424154637,1780614647000,-1600.263084,0.00027,60]
[424154635,1780614647000,-206.93671141,0.00026995,4]
[424154639,1780614647000,-206.93671141,0.00027025,4]
[424154583,1780614647000,-150.0,0.00026388,4]
[424154624,1780614647000,-150.0,0.00026887,4]
[424154613,1780614647000,-206.93671141,0.00026761,4]
[424154625,1780614647000,-150.0,0.00026887,4]
[424154612,1780614647000,-206.93671141,0.00026732,4]
[424154614,1780614647000,-150.0,0.00026762,4]
[424154584,1780614647000,-150.0,0.0002641,4]
[424154589,1780614647000,-150.0,0.00026487,4]
[424154587,1780614647000,-206.93671141,0.00026439,4]
[424154588,1780614647000,-206.93671141,0.00026468,4]
[424154585,1780614647000,-206.93671141,0.0002641,4]
[424154598,1780614647000,-206.93671141,0.00026585,4]
[424154597,1780614647000,-150.0,0.00026571,4]
[424154600,1780614647000,-150.0,0.00026587,4]
[424154599,1780614647000,-150.0,0.00026587,4]
[424154596,1780614647000,-150.0,0.0002656,4]
[424154595,1780614647000,-206.93671141,0.00026556,4]
[424154605,1780614647000,-150.0,0.00026687,4]
[424154610,1780614647000,-3719.50488093,0.00026729,2]
[424154603,1780614647000,-206.93671141,0.00026644,4]
[424154615,1780614647000,-150.0,0.00026787,4]
[424154611,1780614647000,-150.0,0.00026732,4]
[424154609,1780614647000,-671.576668,0.00026723,2]
[424154607,1780614647000,-150.0,0.00026694,4]
[424154608,1780614647000,-206.93671141,0.00026703,4]
[424154604,1780614647000,-206.93671141,0.00026673,4]
[424154606,1780614647000,-150.0,0.00026687,4]
[424154601,1780614647000,-206.93671141,0.00026615,4]
[424154602,1780614647000,-150.0,0.00026627,4]
[424154685,1780614648000,-1707.67,0.000274,7]
[424154687,1780614648000,-206.93671141,0.00027435,7]
[424154688,1780614648000,-150.0,0.00027436,7]
[424154689,1780614648000,-206.93671141,0.00027464,7]
[424154683,1780614648000,-1179.31,0.000274,7]
[424154686,1780614648000,-206.93671141,0.00027405,7]
[424154680,1780614648000,-21182.06,0.00027397,10]
[424154679,1780614648000,-528.6,0.00027397,2]
[424154681,1780614648000,-17651.72,0.00027397,10]
[424154682,1780614648000,-14709.77,0.00027397,10]
[424154678,1780614648000,-300.0,0.00027397,2]
[424154677,1780614648000,-1000.0,0.00027397,20]
[424154676,1780614648000,-1022.03,0.00027397,2]
[424154684,1780614648000,-877.13,0.000274,14]
[424154691,1780614648000,-150.0,0.00027487,7]
[424154692,1780614648000,-206.93671141,0.00027493,7]
[424154698,1780614648000,-150.0,0.00027537,7]
[424154700,1780614648000,-150.0,0.00027571,7]
[424154690,1780614648000,-150.0,0.00027487,7]
[424154701,1780614648000,-206.93671141,0.00027581,7]
[424154702,1780614648000,-762.19,0.00027586,7]
[424154696,1780614648000,-150.0,0.00027537,7]
[424154697,1780614648000,-150.0,0.00027537,7]
[424154693,1780614648000,-500.0,0.000275,7]
[424154695,1780614648000,-206.93671141,0.00027522,7]
[424154694,1780614648000,-150.0,0.00027503,7]
[424154703,1780614648000,-150.0,0.00027587,7]
[424154705,1780614648000,-206.93671141,0.0002761,7]
[424154707,1780614648000,-10338.00722513,0.00027628,2]
[424154669,1780614648000,-206.93671141,0.00027376,4]
[424154699,1780614648000,-206.93671141,0.00027552,7]
[424154667,1780614648000,-150.0,0.00027368,4]
[424154640,1780614648000,-150.0,0.00027031,4]
[424154673,1780614648000,-1500.0,0.00027397,2]
[424154647,1780614648000,-150.0,0.00027099,4]
[424154648,1780614648000,-206.93671141,0.00027112,4]
[424154646,1780614648000,-883.09,0.00027097,2]
[424154644,1780614648000,-150.0,0.00027087,4]
[424154643,1780614648000,-206.93671141,0.00027083,4]
[424154641,1780614648000,-150.0,0.00027054,4]
[424154642,1780614648000,-206.93671141,0.00027054,4]
[424154709,1780614648000,-206.93671141,0.00027639,7]
[424154650,1780614648000,-206.93671141,0.00027142,4]
[424154651,1780614648000,-150.0,0.00027166,4]
[424154649,1780614648000,-504.0,0.00027137,2]
[424154660,1780614648000,-150.0,0.00027287,4]
[424154652,1780614648000,-206.93671141,0.00027171,4]
[424154661,1780614648000,-150.0,0.00027287,4]
[424154654,1780614648000,-150.0,0.00027187,4]
[424154655,1780614648000,-206.93671141,0.000272,4]
[424154657,1780614648000,-206.93671141,0.0002723,4]
[424154671,1780614648000,-150.0,0.00027387,4]
[424154675,1780614648000,-242.02,0.00027397,2]
[424154672,1780614648000,-170.05227917,0.00027397,2]
[424154670,1780614648000,-150.0,0.00027387,4]
[424154674,1780614648000,-6009.6,0.00027397,2]
[424154663,1780614648000,-150.0,0.00027301,4]
[424154668,1780614648000,-150.0,0.00027376,4]
[424154666,1780614648000,-206.93671141,0.00027347,4]
[424154664,1780614648000,-206.93671141,0.00027317,4]
[424154662,1780614648000,-206.93671141,0.00027288,4]
[424154659,1780614648000,-206.93671141,0.00027259,4]
[424154656,1780614648000,-150.0,0.00027215,4]
[424154658,1780614648000,-150.0,0.00027234,4]
[424154653,1780614648000,-150.0,0.00027187,4]
[424154665,1780614648000,-150.0,0.0002733,4]
[424154704,1780614648000,-150.0,0.00027587,7]
[424154645,1780614648000,-150.0,0.00027087,4]
[424154711,1780614648000,-150.0,0.00027687,7]
[424154740,1780614648000,-206.93671141,0.00027844,7]
[424154747,1780614648000,-350.0,0.00027848,2]
[424154757,1780614648000,-206.93671141,0.00027932,7]
[424154758,1780614648000,-206.93671141,0.00027962,7]
[424154746,1780614648000,-350.0,0.00027848,2]
[424154750,1780614648000,-150.0,0.00027859,7]
[424154754,1780614648000,-206.93671141,0.00027903,7]
[424154749,1780614648000,-495.0,0.00027848,2]
[424154752,1780614648000,-150.0,0.00027887,7]
[424154751,1780614648000,-206.93671141,0.00027874,7]
[424154748,1780614648000,-350.0,0.00027848,2]
[424154753,1780614648000,-150.0,0.00027887,7]
[424154756,1780614648000,-504.0,0.00027914,2]
[424154755,1780614648000,-150.0,0.00027908,7]
[424154772,1780614648000,-150.0,0.0002811,7]
[424154761,1780614648000,-150.0,0.00027987,7]
[424154771,1780614648000,-206.93671141,0.00028108,7]
[424154706,1780614648000,-500.0,0.00027623,14]
[424154773,1780614648000,-656.09076806,0.00028132,2]
[424154774,1780614648000,-206.93671141,0.00028137,7]
[424154767,1780614648000,-206.93671141,0.00028049,7]
[424154768,1780614648000,-206.93671141,0.00028079,7]
[424154765,1780614648000,-206.93671141,0.0002802,7]
[424154741,1780614648000,-350.0,0.00027848,2]
[424154764,1780614648000,-150.0,0.0002802,7]
[424154775,1780614648000,-150.0,0.00028158,7]
[424154760,1780614648000,-150.0,0.00027987,7]
[424154759,1780614648000,-150.0,0.00027975,7]
[424154770,1780614648000,-150.0,0.00028087,7]
[424154762,1780614648000,-206.93671141,0.00027991,7]
[424154769,1780614648000,-150.0,0.00028087,7]
[424154763,1780614648000,-600.0,0.00028,2]
[424154738,1780614648000,-206.93671141,0.00027815,7]
[424154766,1780614648000,-150.0,0.00028043,7]
[424154737,1780614648000,-177.92984702,0.00027792,2]
[424154745,1780614648000,-350.0,0.00027848,2]
[424154708,1780614648000,-150.0,0.00027638,7]
[424154710,1780614648000,-206.93671141,0.00027669,7]
[424154713,1780614648000,-150.0,0.00027698,7]
[424154716,1780614648000,-150.0,0.00027706,7]
[424154714,1780614648000,-206.93671141,0.00027698,7]
[424154717,1780614648000,-206.93671141,0.00027727,7]
[424154715,1780614648000,-502.61,0.000277,7]
[424154719,1780614648000,-206.93671141,0.00027757,7]
[424154729,1780614648000,-168.3836948,0.00027792,2]
[424154720,1780614648000,-163.28709294,0.00027759,2]
[424154724,1780614648000,-150.0,0.00027773,7]
[424154725,1780614648000,-187.88827401,0.00027774,2]
[424154731,1780614648000,-152.70988934,0.00027792,2]
[424154718,1780614648000,-150.0,0.00027744,7]
[424154712,1780614648000,-150.0,0.00027687,7]
[424154722,1780614648000,-166.49703777,0.00027759,2]
[424154721,1780614648000,-215.80383714,0.00027759,2]
[424154739,1780614648000,-150.0,0.0002784,7]
[424154744,1780614648000,-350.0,0.00027848,2]
[424154736,1780614648000,-169.44798555,0.00027792,2]
[424154733,1780614648000,-159.54250271,0.00027792,2]
[424154735,1780614648000,-184.24058675,0.00027792,2]
[424154732,1780614648000,-150.3389101,0.00027792,2]
[424154734,1780614648000,-168.4170748,0.00027792,2]
[424154742,1780614648000,-350.0,0.00027848,2]
[424154728,1780614648000,-150.0,0.00027787,7]
[424154727,1780614648000,-150.0,0.00027787,7]
[424154723,1780614648000,-161.87067253,0.00027759,2]
[424154730,1780614648000,-159.02417719,0.00027792,2]
[424154743,1780614648000,-350.0,0.00027848,2]
[424154726,1780614648000,-206.93671141,0.00027786,7]
[424154801,1780614649000,-150.0,0.00028391,2]
[424154824,1780614649000,-150.0,0.00028586,7]
[424154826,1780614649000,-280.02,0.0002863,2]
[424154814,1780614649000,-168.16,0.00028493,2]
[424154805,1780614649000,-173.42901521,0.00028399,2]
[424154804,1780614649000,-168.0,0.00028391,2]
[424154807,1780614649000,-206.93671141,0.0002843,7]
[424154803,1780614649000,-150.0,0.00028391,2]
[424154802,1780614649000,-150.0,0.00028391,2]
[424154812,1780614649000,-150.0,0.00028487,7]
[424154806,1780614649000,-206.93671141,0.00028401,7]
[424154813,1780614649000,-206.93671141,0.00028489,7]
[424154821,1780614649000,-206.93671141,0.00028576,7]
[424154820,1780614649000,-150.0,0.00028572,7]
[424154815,1780614649000,-150.0,0.00028503,7]
[424154819,1780614649000,-206.93671141,0.00028547,7]
[424154823,1780614649000,-150.0,0.00028586,7]
[424154816,1780614649000,-150.0,0.00028514,7]
[424154818,1780614649000,-12635.13,0.00028526,7]
[424154817,1780614649000,-206.93671141,0.00028518,7]
[424154822,1780614649000,-150.0,0.00028582,7]
[424154828,1780614649000,-280.37,0.0002863,2]
[424154810,1780614649000,-206.93671141,0.00028459,7]
[424154838,1780614649000,-280.02,0.00028661,7]
[424154825,1780614649000,-206.93671141,0.00028606,7]
[424154808,1780614649000,-150.0,0.00028447,7]
[424154788,1780614649000,-150.0,0.00028287,7]
[424154809,1780614649000,-500.0,0.00028452,16]
[424154839,1780614649000,-280.37,0.00028661,7]
[424154785,1780614649000,-3745.4,0.00028267,2]
[424154776,1780614649000,-206.93671141,0.00028166,7]
[424154782,1780614649000,-206.93671141,0.00028225,7]
[424154783,1780614649000,-150.0,0.00028245,7]
[424154784,1780614649000,-206.93671141,0.00028254,7]
[424154777,1780614649000,-150.0,0.00028177,7]